fUSD/lending_fUSD_20250629
["ID","MTS","AMOUNT","RATE_DAILY","PERIOD"]
[368574648,1751212625655,-151.0,0.00022191,7]
[368574649,1751212625711,-151.0,0.00022191,7]
[368574650,1751212625770,-490.0,0.00022191,2]
[368574651,1751212625827,-1087.27,0.00022191,2]
[368574652,1751212625885,-772.88,0.00022191,2]
[368574653,1751212625944,-507.95833311,0.00022191,2]
[368574654,1751212626002,-490.0,0.00022191,2]
[368574655,1751212626061,-153.742681,0.00022191,7]
[368574656,1751212626115,-490.0,0.00022191,2]
[368574657,1751212626171,-490.0,0.00022191,2]
[368574658,1751212626225,-490.0,0.00022191,2]
[368574659,1751212626281,-1024.93,0.00022191,2]
[368574660,1751212626338,-714.74,0.00022191,2]
[368574661,1751212626394,-490.0,0.00022191,2]
[368574662,1751212626449,-490.0,0.00022191,2]
[368574663,1751212626506,-490.0,0.00022191,2]
[368574664,1751212626560,-490.0,0.00022191,2]
[368574665,1751212626615,-1793.8,0.00022191,2]
[368574666,1751212626671,-490.0,0.00022191,2]
[368574667,1751212626727,-490.0,0.00022191,2]
[368574668,1751212626780,-1586.89,0.00022191,2]
[368574669,1751212626833,-490.0,0.00022191,2]
[368574670,1751212626885,-90.08862452,0.00022191,2]
[368574671,1751212773553,150.0,0.00013935,2]
[368574672,1751212871847,852.09035889,0.0002739,120]
[368574673,1751212948831,-2611.47932,0.00019933,2]
[368574674,1751212948853,-305.68,0.00020034,2]
[368574675,1751212948875,-300.17,0.00020034,2]
[368574676,1751212948896,-304.79,0.00020034,2]
[368574677,1751212948917,-301.51,0.00020034,2]
[368574678,1751212948938,-305.47,0.00020034,2]
[368574679,1751212948960,-301.18,0.00020034,2]
[368574680,1751212948981,-300.0,0.00020034,2]
[368574681,1751212949003,-280.0,0.00020034,2]
[368574682,1751212949024,-304.12,0.00020034,2]
[368574683,1751212949047,-302.67,0.00020034,2]
[368574684,1751212949068,-305.96,0.00020034,2]
[368574685,1751212949089,-302.79,0.00020034,2]
[368574686,1751212949111,-305.71,0.00020034,2]
[368574687,1751212949133,-1000.0,0.00020035,2]
[368574688,1751212949154,-250.0,0.00020035,2]
[368574689,1751212949176,-300.0,0.00020035,2]
[368574690,1751212949196,-305.63,0.00020035,2]
[368574691,1751212949218,-302.05,0.00020035,2]
[368574692,1751212949239,-302.78,0.00020035,2]
[368574693,1751212949262,-300.83,0.00020035,2]
[368574694,1751212949285,-305.68,0.00020035,2]
[368574695,1751212949306,-302.92,0.00020035,2]
[368574696,1751212949327,-302.66,0.00020035,2]
[368574697,1751212949348,-301.69,0.00020035,2]
[368574698,1751212949370,-305.93,0.00020035,2]
[368574699,1751212949391,-300.52,0.00020035,2]
[368574700,1751212949412,-303.38,0.00020035,2]
[368574701,1751212949433,-618.22587039,0.00020331,2]
[368574702,1751212949454,-250.0,0.00020485,2]
[368574703,1751212949477,-300.0,0.00020485,2]
[368574704,1751212949498,-2657.26286005,0.00020645,2]
[368574705,1751212949519,-1000.0,0.00020649,2]
[368574706,1751212949543,-150.0,0.00020767,2]
[368574707,1751212949567,-522.0,0.0002087,2]
[368574708,1751212949591,-10993.5,0.00020951,2]
[368574709,1751212949612,-13198.79,0.00020951,2]
[368574710,1751212949633,-5198.45,0.00020951,2]
[368574711,1751212949660,-150.0,0.00020961,2]
[368574712,1751212949683,-150.0,0.00021062,2]
[368574713,1751212949708,-150.0,0.00021085,2]
[368574714,1751212949733,-150.0,0.00021096,2]
[368574715,1751212949757,-150.0,0.00021132,2]
[368574716,1751212949779,-150.0,0.00021156,2]
[368574717,1751212949802,-38198.42,0.00021305,2]
[368574718,1751212949823,-2437.99472224,0.00021385,2]
[368574719,1751212949847,-150.0,0.00021521,2]
[368574720,1751212949873,-2297.0,0.00021588,2]
[368574721,1751212949896,-283.82751249,0.00021603,2]
[368574722,1751212949919,-1000.0,0.00021604,2]
[368574723,1751212949940,-1000.0,0.00021616,2]
[368574724,1751212949964,-150.0,0.00021727,2]
[368574725,1751212949989,-150.0,0.00021733,2]
[368574726,1751212950013,-128.92971483,0.00021742,2]
[368574727,1751213007727,264.691871,0.00022009,29]
[368574728,1751213027294,-302.66,0.00020034,2]
[368574729,1751213027315,-300.15,0.00020034,2]
[368574730,1751213027337,-305.38,0.00020034,2]
[368574731,1751213027357,-304.74,0.00020034,2]
[368574732,1751213027378,-304.24,0.00020034,2]
[368574733,1751213027401,-305.47,0.00020034,2]
[368574734,1751213027421,-305.13,0.00020034,2]
[368574735,1751213027444,-304.48,0.00020422,2]
[368574736,1751213027465,-302.75,0.00020422,2]
[368574737,1751213027488,-809.0,0.0002087,2]
[368574738,1751213027509,-3279.2,0.00021305,2]
[368574739,1751213027530,-825.61597284,0.00021742,2]
[368574740,1751213027550,-4723.0,0.00021757,2]
[368574741,1751213027571,-999.99,0.00021757,2]
[368574742,1751213027591,-1553.4,0.00021757,2]
[368574743,1751213027613,-1690.94,0.00021757,2]
[368574744,1751213027634,-499.99,0.00021757,2]
[368574745,1751213027656,-1140.69,0.00021757,2]
[368574746,1751213027680,-3693.33,0.00021757,2]
[368574747,1751213027703,-354.45,0.00021757,5]
[368574748,1751213027726,-2129.20723476,0.00021817,2]
[368574749,1751213027749,-594.32613516,0.00021817,2]
[368574750,1751213027772,-724.52288192,0.00021817,2]
[368574751,1751213027794,-160.51797542,0.00021817,2]
[368574752,1751213027815,-168.68119732,0.00021817,2]
[368574753,1751213027836,-402.2083088,0.00021845,2]
[368574754,1751213027858,-1167.47,0.00021852,2]
[368574755,1751213027878,-150.0,0.00021852,2]
[368574756,1751213027900,-246.02,0.00021852,2]
[368574757,1751213027921,-272.19,0.00021852,2]
[368574758,1751213027943,-724.52288192,0.00021878,2]
[368574759,1751213027964,-150.99,0.00021878,2]
[368574760,1751213027985,-1418.46,0.00021878,2]
[368574761,1751213028007,-9999.99,0.00021878,2]
[368574762,1751213028028,-9999.99,0.00021878,2]
[368574763,1751213028049,-150.99,0.00021878,2]
[368574764,1751213028071,-4989.35,0.00021878,2]
[368574765,1751213028092,-4119.96,0.00021878,2]
[368574766,1751213028115,-2875.39,0.00021878,2]
[368574767,1751213028137,-2129.20723473,0.0002189,2]
[368574768,1751213028159,-9999.99,0.0002189,2]
[368574769,1751213028181,-3570.75,0.0002189,2]
[368574770,1751213028205,-2000.0,0.000219,2]
[368574771,1751213028232,-200.38595654,0.000219,6]
[368574772,1751213028255,-277.69,0.00021907,2]
[368574773,1751213028276,-500.0,0.00021916,2]
[368574774,1751213028298,-500.0,0.00021916,2]
[368574775,1751213028321,-500.0,0.00021916,2]
[368574776,1751213028342,-258.68233582,0.00021916,2]
[368574777,1751213028364,-500.0,0.00021916,2]
[368574778,1751213028386,-414.16245472,0.00021916,2]
[368574779,1751213028408,-500.0,0.00021916,2]
[368574780,1751213028430,-410.58756239,0.00021916,2]
[368574781,1751213028454,-500.0,0.00021916,2]
[368574782,1751213028785,-399.54519996,0.00021916,2]
[368574783,1751213028810,-500.0,0.00021916,2]
[368574784,1751213028832,-500.0,0.00021916,2]
[368574785,1751213028855,-500.0,0.00021916,2]
[368574786,1751213028877,-500.0,0.00021916,2]
[368574787,1751213028899,-500.0,0.00021916,2]
[368574788,1751213028921,-299.6792415,0.00021916,2]
[368574789,1751213028943,-500.0,0.00021916,2]
[368574790,1751213028968,-500.0,0.00021916,2]
[368574791,1751213028991,-500.0,0.00021916,2]
[368574792,1751213029014,-190.0,0.00021916,2]
[368574793,1751213029036,-500.0,0.00021916,2]
[368574794,1751213029060,-500.0,0.00021916,2]
[368574795,1751213029083,-500.0,0.00021916,2]
[368574796,1751213029107,-500.0,0.00021916,2]
[368574797,1751213029129,-500.0,0.00021916,2]
[368574798,1751213029153,-500.0,0.00021916,2]
[368574799,1751213029176,-490.0,0.00021917,2]
[368574800,1751213029200,-490.0,0.00021917,2]
[368574801,1751213029223,-490.0,0.00021917,2]
[368574802,1751213029246,-490.0,0.00021917,2]
[368574803,1751213029268,-490.0,0.00021917,2]
[368574804,1751213029290,-737.78,0.00021917,2]
[368574805,1751213029313,-490.0,0.00021917,2]
[368574806,1751213029336,-490.0,0.00021917,2]
[368574807,1751213029358,-490.0,0.00021917,2]
[368574808,1751213029380,-490.0,0.00021917,2]
[368574809,1751213029402,-490.0,0.00021917,2]
[368574810,1751213029424,-490.0,0.00021917,2]
[368574811,1751213029448,-490.0,0.00021917,2]
[368574812,1751213029471,-490.0,0.00021917,2]
[368574813,1751213029492,-490.0,0.00021917,2]
[368574814,1751213029516,-490.0,0.00021917,2]
[368574815,1751213029538,-490.0,0.00021917,2]
[368574816,1751213029561,-490.0,0.00021917,2]
[368574817,1751213029584,-490.0,0.00021917,2]
[368574818,1751213029606,-505.67,0.00021917,2]
[368574819,1751213029628,-1619.78,0.00021917,2]
[368574820,1751213029650,-490.0,0.00021917,2]
[368574821,1751213029672,-490.0,0.00021917,2]
[368574822,1751213029695,-490.0,0.00021917,2]
[368574823,1751213029722,-500.0,0.00021917,2]
[368574824,1751213029749,-500.0,0.00021917,2]
[368574825,1751213029771,-490.0,0.00021917,2]
[368574826,1751213029794,-500.0,0.00021917,2]
[368574827,1751213029817,-500.0,0.00021917,2]
[368574828,1751213029838,-490.0,0.00021917,2]
[368574829,1751213029862,-490.0,0.00021917,2]
[368574830,1751213029884,-500.0,0.00021917,2]
[368574831,1751213029906,-1371.95,0.00021917,2]
[368574832,1751213029928,-500.0,0.00021917,2]
[368574833,1751213029955,-490.0,0.00021917,2]
[368574834,1751213029978,-490.0,0.00021917,2]
[368574835,1751213030003,-273.01610196,0.00021917,2]
[368574836,1751213030027,-490.0,0.00021917,2]
[368574837,1751213030051,-490.0,0.00021917,2]
[368574838,1751213030073,-490.0,0.00021917,2]
[368574839,1751213030095,-490.0,0.00021917,2]
[368574840,1751213030117,-490.0,0.00021917,2]
[368574841,1751213030140,-490.0,0.00021917,2]
[368574842,1751213030168,-490.0,0.00021917,2]
[368574843,1751213030192,-490.0,0.00021917,2]
[368574844,1751213030216,-490.0,0.00021917,2]
[368574845,1751213030240,-490.0,0.00021917,2]
[368574846,1751213030261,-490.0,0.00021917,2]
[368574847,1751213030284,-490.0,0.00021917,2]
[368574848,1751213030307,-490.0,0.00021917,2]
[368574849,1751213030332,-490.0,0.00021917,2]
[368574850,1751213030355,-490.0,0.00021917,2]
[368574851,1751213030377,-490.0,0.00021917,2]
[368574852,1751213030399,-604.05,0.00021917,2]
[368574853,1751213030421,-490.0,0.00021917,2]
[368574854,1751213030442,-490.0,0.00021917,2]
[368574855,1751213030464,-490.0,0.00021917,2]
[368574856,1751213030486,-490.0,0.00021917,2]
[368574857,1751213030508,-490.0,0.00021917,2]
[368574858,1751213030530,-490.0,0.00021917,2]
[368574859,1751213030552,-500.0,0.00021917,2]
[368574860,1751213030575,-490.0,0.00021917,2]
[368574861,1751213030597,-500.0,0.00021917,2]
[368574862,1751213030620,-1454.22,0.00021917,2]
[368574863,1751213030643,-500.0,0.00021917,2]
[368574864,1751213030665,-500.0,0.00021917,2]
[368574865,1751213030697,-1570.37,0.00021917,2]
[368574866,1751213030726,-675.06,0.00021917,2]
[368574867,1751213030750,-490.0,0.00021917,2]
[368574868,1751213030773,-675.06,0.00021917,2]
[368574869,1751213030799,-675.06,0.00021917,2]
[368574870,1751213030822,-749.83,0.00021917,2]
[368574871,1751213030844,-675.06,0.00021917,2]
[368574872,1751213030868,-675.06,0.00021917,2]
[368574873,1751213030891,-675.06,0.00021917,2]
[368574874,1751213030913,-490.0,0.00021917,2]
[368574875,1751213030936,-553.88,0.00021917,2]
[368574876,1751213030958,-490.0,0.00021917,2]
[368574877,1751213030981,-968.71,0.00021917,2]
[368574878,1751213031010,-1234.51,0.00021917,2]
[368574879,1751213031034,-490.0,0.00021917,2]
[368574880,1751213031057,-2093.39,0.00021917,2]
[368574881,1751213031081,-490.0,0.00021917,2]
[368574882,1751213031104,-490.0,0.00021917,2]
[368574883,1751213031127,-490.0,0.00021917,2]
[368574884,1751213031151,-490.0,0.00021917,2]
[368574885,1751213031176,-490.0,0.00021917,2]
[368574886,1751213031200,-490.0,0.00021917,2]
[368574887,1751213031224,-490.0,0.00021917,2]
[368574888,1751213031247,-612.27,0.00021917,2]
[368574889,1751213031269,-490.0,0.00021917,2]
[368574890,1751213031293,-1390.67,0.00021917,2]
[368574891,1751213031316,-490.0,0.00021917,2]
[368574892,1751213031339,-586.07,0.00021917,2]
[368574893,1751213031362,-504.2368853,0.00021917,2]
[368574894,1751213031390,-1855.73,0.00021917,2]
[368574895,1751213031413,-490.0,0.00021917,2]
[368574896,1751213031436,-1785.51,0.00021917,2]
[368574897,1751213031458,-490.0,0.00021917,2]
[368574898,1751213031481,-490.0,0.00021917,2]
[368574899,1751213031503,-842.25,0.00021917,2]
[368574900,1751213031526,-490.0,0.00021917,2]
[368574901,1751213031548,-657.02,0.00021917,2]
[368574902,1751213031571,-579.57,0.00021917,2]
[368574903,1751213031593,-490.0,0.00021917,2]
[368574904,1751213031615,-490.0,0.00021917,2]
[368574905,1751213031638,-3270.67,0.00021917,2]
[368574906,1751213031660,-490.0,0.00021917,2]
[368574907,1751213031683,-1373.74,0.00021917,2]
[368574908,1751213031710,-2763.8,0.00021917,2]
[368574909,1751213031733,-490.0,0.00021917,2]
[368574910,1751213031754,-490.0,0.00021917,2]
[368574911,1751213031776,-490.0,0.00021917,2]
[368574912,1751213031799,-490.0,0.00021917,2]
[368574913,1751213031822,-490.0,0.00021917,2]
[368574914,1751213031844,-490.0,0.00021917,2]
[368574915,1751213031865,-423.59704227,0.00021917,2]
[368574916,1751213031886,-2301.22,0.00021917,2]
[368574917,1751213031913,-9547.13,0.00021917,2]
[368574918,1751213031935,-375.92773938,0.00021917,2]
[368574919,1751213031958,-675.47,0.00021917,2]
[368574920,1751213031979,-490.0,0.00021917,2]
[368574921,1751213032001,-490.0,0.00021917,2]
[368574922,1751213032023,-490.0,0.00021917,2]
[368574923,1751213032045,-500.0,0.00021917,2]
[368574924,1751213032067,-500.0,0.00021917,2]
[368574925,1751213032089,-500.0,0.00021917,2]
[368574926,1751213032111,-490.0,0.00021917,2]
[368574927,1751213032133,-1784.08,0.00021917,2]
[368574928,1751213032154,-490.0,0.00021917,2]
[368574929,1751213032176,-490.0,0.00021917,2]
[368574930,1751213032198,-517.05035662,0.00021917,2]
[368574931,1751213032221,-1313.58,0.00021917,2]
[368574932,1751213032243,-937.28,0.00021917,2]
[368574933,1751213032292,-2546.09,0.00021917,2]
[368574934,1751213032322,-490.0,0.00021917,2]
[368574935,1751213032355,-490.0,0.00021917,2]
[368574936,1751213032389,-2624.39,0.00021917,2]
[368574937,1751213032419,-1631.37,0.00021917,2]
[368574938,1751213032452,-490.0,0.00021917,2]
[368574939,1751213032486,-490.0,0.00021917,2]
[368574940,1751213032518,-3270.4,0.00021917,2]
[368574941,1751213032550,-928.66,0.00021917,2]
[368574942,1751213032582,-10354.28,0.00021917,2]
[368574943,1751213032615,-490.0,0.00021917,2]
[368574944,1751213032645,-500.0,0.00021917,2]
[368574945,1751213032682,-490.0,0.00021917,2]
[368574946,1751213032714,-490.0,0.00021917,2]
[368574947,1751213032742,-1548.63,0.00021917,2]
[368574948,1751213032773,-490.0,0.00021917,2]
[368574949,1751213032802,-490.0,0.00021917,2]
[368574950,1751213032837,-1966.27,0.00021917,2]
[368574951,1751213032864,-1878.11,0.00021917,2]
[368574952,1751213032892,-490.0,0.00021917,2]
[368574953,1751213032921,-490.0,0.00021917,2]
[368574954,1751213032958,-1189.89,0.00021917,2]
[368574955,1751213033018,-490.0,0.00021917,2]
[368574956,1751213033051,-5147.25,0.00021917,2]
[368574957,1751213033084,-490.0,0.00021917,2]
[368574958,1751213033119,-490.0,0.00021917,2]
[368574959,1751213033151,-490.0,0.00021917,2]
[368574960,1751213033184,-619.11521949,0.00021917,2]
[368574961,1751213033215,-490.0,0.00021917,2]
[368574962,1751213033249,-853.96,0.00021917,2]
[368574963,1751213033281,-537.47,0.00021917,2]
[368574964,1751213033312,-2310.66,0.00021917,2]
[368574965,1751213033341,-490.0,0.00021917,2]
[368574966,1751213033369,-490.0,0.00021917,2]
[368574967,1751213033398,-490.0,0.00021917,2]
[368574968,1751213033428,-494.89589127,0.00021917,2]
[368574969,1751213033458,-6151.26,0.00021917,2]
[368574970,1751213033487,-490.0,0.00021917,2]
[368574971,1751213033516,-2865.31,0.00021917,2]
[368574972,1751213033547,-1210.56,0.00021917,2]
[368574973,1751213033576,-490.0,0.00021917,2]
[368574974,1751213033604,-490.0,0.00021917,2]
[368574975,1751213033632,-490.0,0.00021917,2]
[368574976,1751213033661,-1500.0,0.00021917,2]
[368574977,1751213033692,-579.87,0.00021917,2]
[368574978,1751213033722,-490.0,0.00021917,2]
[368574979,1751213033751,-490.0,0.00021917,2]
[368574980,1751213033780,-490.0,0.00021917,2]
[368574981,1751213033810,-1233.98,0.00021917,2]
[368574982,1751213033839,-490.0,0.00021917,2]
[368574983,1751213033867,-503.41874463,0.00021917,2]
[368574984,1751213033896,-490.0,0.00021917,2]
[368574985,1751213033925,-2373.85,0.00021917,2]
[368574986,1751213033955,-3297.62,0.00021917,2]
[368574987,1751213033985,-1741.63,0.00021917,2]
[368574988,1751213034015,-490.0,0.00021917,2]
[368574989,1751213034043,-492.15,0.00021917,2]
[368574990,1751213034072,-490.0,0.00021917,2]
[368574991,1751213034101,-3194.68,0.00021917,2]
[368574992,1751213034131,-490.0,0.00021917,2]
[368574993,1751213034160,-726.74,0.00021917,2]
[368574994,1751213034189,-568.403321,0.00021917,2]
[368574995,1751213034217,-490.0,0.00021917,2]
[368574996,1751213034246,-910.73,0.00021917,2]
[368574997,1751213034275,-490.0,0.00021917,2]
[368574998,1751213034303,-959.07,0.00021917,2]
[368574999,1751213034330,-490.0,0.00021917,2]
[368575000,1751213034357,-490.0,0.00021917,2]
[368575001,1751213034384,-1967.74,0.00021917,2]
[368575002,1751213034411,-490.0,0.00021917,2]
[368575003,1751213034440,-1848.99,0.00021917,2]
[368575004,1751213034469,-8061.31,0.00021917,2]
[368575005,1751213034495,-490.0,0.00021917,2]
[368575006,1751213034522,-490.0,0.00021917,2]
[368575007,1751213034549,-1723.83,0.00021917,2]
[368575008,1751213034577,-2695.71,0.00021917,2]
[368575009,1751213034603,-499.69498086,0.00021917,2]
[368575010,1751213034629,-490.0,0.00021917,2]
[368575011,1751213034654,-490.0,0.00021917,2]
[368575012,1751213034680,-490.0,0.00021917,2]
[368575013,1751213034710,-490.0,0.00021917,2]
[368575014,1751213034737,-942.57,0.00021917,2]
[368575015,1751213034763,-490.0,0.00021917,2]
[368575016,1751213034790,-490.0,0.00021917,2]
[368575017,1751213034817,-12341.9,0.00021917,2]
[368575018,1751213034843,-490.0,0.00021917,2]
[368575019,1751213034869,-736.67,0.00021917,2]
[368575020,1751213034896,-1627.37,0.00021917,2]
[368575021,1751213034923,-490.0,0.00021917,2]
[368575022,1751213034950,-502.92973013,0.00021917,2]
[368575023,1751213034978,-546.09,0.00021917,2]
[368575024,1751213035005,-490.0,0.00021917,2]
[368575025,1751213035031,-490.0,0.00021917,2]
[368575026,1751213035057,-490.0,0.00021917,2]
[368575027,1751213035085,-490.0,0.00021917,2]
[368575028,1751213035114,-1341.98,0.00021917,2]
[368575029,1751213035142,-490.0,0.00021917,2]
[368575030,1751213035169,-490.0,0.00021917,2]
[368575031,1751213035197,-490.0,0.00021917,2]
[368575032,1751213035228,-490.0,0.00021917,2]
[368575033,1751213035257,-490.0,0.00021917,2]
[368575034,1751213035287,-1110.21,0.00021917,2]
[368575035,1751213035315,-3299.23,0.00021917,2]
[368575036,1751213035341,-759.84,0.00021917,2]
[368575037,1751213035367,-626.3,0.00021917,2]
[368575038,1751213035393,-340.53378969,0.00021917,2]
[368575039,1751213035420,-2613.56,0.00021917,2]
[368575040,1751213035447,-490.0,0.00021917,2]
[368575041,1751213035478,-490.0,0.00021917,2]
[368575042,1751213035505,-490.0,0.00021917,2]
[368575043,1751213035532,-1026.31,0.00021917,2]
[368575044,1751213035559,-2016.74,0.00021917,2]
[368575045,1751213035585,-2905.35,0.00021917,2]
[368575046,1751213035611,-490.0,0.00021917,2]
[368575047,1751213035638,-493.17348298,0.00021917,2]
[368575048,1751213035665,-177.73153508,0.00021917,2]
[368575049,1751213035691,-1146.29,0.00021917,2]
[368575050,1751213035720,-4469.29,0.00021917,2]
[368575051,1751213035747,-490.0,0.00021917,2]
[368575052,1751213035774,-1740.46,0.00021917,2]
[368575053,1751213035802,-490.0,0.00021917,2]
[368575054,1751213035828,-490.0,0.00021917,2]
[368575055,1751213035855,-897.9,0.00021917,2]
[368575056,1751213035881,-4087.93,0.00021917,2]
[368575057,1751213035907,-490.0,0.00021917,2]
[368575058,1751213035934,-490.0,0.00021917,2]
[368575059,1751213035960,-2504.99,0.00021917,2]
[368575060,1751213035986,-490.0,0.00021917,2]
[368575061,1751213036013,-619.47,0.00021917,2]
[368575062,1751213036727,-490.0,0.00021917,2]
[368575063,1751213036806,-18302.73260554,0.00021917,2]
[368575077,1751213431856,-1200.0,0.0002003,2]
[368575078,1751213431866,-303.56,0.00020031,2]
[368575079,1751213431875,-300.37,0.00020031,2]
[368575080,1751213431889,-303.86,0.00020031,2]
[368575081,1751213431899,-303.65,0.00020031,2]
[368575082,1751213431908,-300.97,0.00020031,2]
[368575083,1751213431919,-300.55,0.00020031,2]
[368575084,1751213432029,-302.58,0.00020031,2]
[368575086,1751213432040,-305.44,0.00020031,2]
[368575087,1751213432050,-303.16,0.00020031,2]
[368575090,1751213432059,-305.01,0.00020031,2]
[368575091,1751213432069,-304.37,0.00020031,2]
[368575093,1751213432079,-303.39,0.00020031,2]
[368575095,1751213432088,-305.96,0.00020031,2]
[368575097,1751213432098,-301.47,0.00020031,2]
[368575099,1751213432107,-303.81,0.00020031,2]
[368575101,1751213432117,-301.55,0.00020031,2]
[368575103,1751213432126,-303.64,0.00020031,2]
[368575105,1751213432135,-305.83,0.00020031,2]
[368575107,1751213432145,-303.56,0.00020031,2]
[368575109,1751213432154,-305.17,0.00020031,2]
[368575111,1751213432164,-305.09,0.00020032,2]
[368575113,1751213432173,-304.26,0.00020032,2]
[368575114,1751213432183,-302.08,0.00020032,2]
[368575116,1751213432194,-302.69,0.00020032,2]
[368575118,1751213432204,-301.19,0.00020032,2]
[368575120,1751213432213,-302.4,0.00020032,2]
[368575122,1751213432223,-304.56,0.00020033,2]
[368575124,1751213432233,-301.05,0.00020033,2]
[368575126,1751213432242,-303.86,0.00020033,2]
[368575128,1751213432252,-305.95,0.00020033,2]
[368575130,1751213432262,-304.48,0.00020033,2]
[368575132,1751213432271,-305.01,0.00020033,2]
[368575134,1751213432280,-300.14,0.00020033,2]
[368575136,1751213432290,-1200.0,0.00020033,2]
[368575137,1751213432300,-304.66,0.00020034,2]
[368575139,1751213432309,-302.19,0.00020034,2]
[368575141,1751213432319,-301.97,0.00020034,2]
[368575143,1751213432328,-303.04,0.00020034,2]
[368575145,1751213432337,-302.06,0.00020034,2]
[368575147,1751213432346,-303.28,0.00020034,2]
[368575149,1751213432356,-305.77,0.00020034,2]
[368575151,1751213432365,-301.32,0.00020034,2]
[368575153,1751213432375,-301.94,0.00020034,2]
[368575155,1751213432384,-301.79,0.00020034,2]
[368575157,1751213432393,-300.4,0.00020034,2]
[368575159,1751213432404,-169.41,0.00020605,2]
[368575162,1751213432418,-300.0,0.00020669,2]
[368575163,1751213432427,-1095.27,0.0002072,2]
[368575165,1751213432437,-943.8,0.00020989,2]
[368575167,1751213432447,-250.0,0.00021086,2]
[368575170,1751213432457,-1000.0,0.00021104,2]
[368575171,1751213432468,-200.0,0.00021305,7]
[368575174,1751213432479,-200.0,0.00021305,2]
[368575176,1751213432489,-600.0,0.000214,7]
[368575178,1751213432498,-1200.0,0.000215,7]
[368575179,1751213432508,-1900.0,0.000216,7]
[368575182,1751213432518,-390.0,0.000216,3]
[368575183,1751213432528,-167.33,0.00021645,2]
[368575185,1751213432538,-2500.0,0.000217,7]
[368575187,1751213432547,-669.83869099,0.00021742,2]
[368575189,1751213432557,-3100.0,0.000218,7]
[368575191,1751213432566,-219.32026019,0.00021817,2]
[368575193,1751213432576,-594.32613515,0.00021817,2]
[368575195,1751213432585,-160.51797542,0.00021817,2]
[368575197,1751213432595,-475.08983154,0.00021817,2]
[368575199,1751213432604,-1828.42814401,0.00021817,2]
[368575201,1751213432613,-612.69754319,0.00021817,2]
[368575203,1751213432624,-10970.12740948,0.00021817,2]
[368575205,1751213432633,-713.89,0.00021852,2]
[368575207,1751213432643,-710.84,0.00021852,2]
[368575209,1751213432653,-1828.42814392,0.00021878,2]
[368575211,1751213432663,-612.69754313,0.00021878,2]
[368575213,1751213432673,-600.0,0.000219,7]
[368575215,1751213432683,-206.2696986,0.000219,6]
[368575217,1751213432692,-300.0,0.00021904,2]
[368575219,1751213432702,-156.587,0.00021904,2]
[368575221,1751213432712,-207.4,0.00021904,2]
[368575223,1751213432722,-160.0,0.00021904,2]
[368575225,1751213432731,-500.0,0.00021904,2]
[368575227,1751213432740,-6912.642,0.00021904,2]
[368575229,1751213432750,-500.0,0.00021904,2]
[368575231,1751213432760,-500.0,0.00021904,2]
[368575233,1751213432769,-1000.0,0.00021904,2]